Workbook

Sheet Introduction
N3: No: MA-4-042-0917
N4: DATE: 09/12/2017
N5: Page 1 of 12
C9: Wagner Supplier Performance Excellence Evaluation

Sheet Cover
N3: =Introduction!N3 -> No: MA-4-042-0917 | T3: File Name = Company Name & Survey Date
N4: =Introduction!N4 -> DATE: 09/12/2017 | T4: =G26&" "&IF(G39="","",TEXT(G39,"mm-dd-yyyy")) -> MA-4-042-0917 09-29-2017
N5: Page 2 of 12
C11: Wagner Supplier Performance Excellence Evaluation
E13: 1.00 Management
E14: 2.00 Communication
E15: 3.00 Contract Review/Document Control
E16: 4.00 Manufacturing
E17: 5.00 Procurement
E18: 6.00 Engineering
E19: 7.00 Quality
E20: 8.00 Product Identification and Traceability
E21: 9.00 Control of Non-conforming Product
E22: 10.00 Packaging, Storage, Handling & Shipping
E23: 11.00 Wagner - Supplier Partnership Evaluation
E24: 12.00 Wagner / Supplier Performance Excellence Planned Actions
D26: Company Name | G26: MA-4-042-0917
D27: Address
D28: City
D29: State / Zip code
D30: Country
D31: Telephone
D32: Fax
D33: E-Mail
D34: Supplier Representative
D35: ( Name / Department)
D37: Survey Completed By
D38: Department
D39: Survey Date | G39: =TEXT(NOW(),"mm-dd-yyyy") -> 09-29-2017
D40: Wagner Representative
D41: ( Name / Department)

Sheet 1.00 2.00
P3: =Introduction!N3 -> No: MA-4-042-0917
P4: =Introduction!N4 -> DATE: 09/12/2017
P5: Page 3 of 12
C11: 1.00 Management
C12: Item | D12: Description | P12: Max Score | Q12: Self Score | R12: Wagner Score
C13: 1.01 | D13: Is the company currently or has previously been a supplier to Wagner? | P13: 1
C14: 1.02 | D14: *Is the company certified, by an accredited body, to a quality system standard such as ISO 9001? | P14: 1
C15: 1.03 | D15: *Does the company have a formal Organization Chart? | P15: 1
C16: 1.04 | D16: *Can your company provide customer and financial references? | P16: 1
C17: 1.05 | D17: Who are your main customers and what are their primary products? | P17: 5
D18: List customer and product
D19: 1
D20: 2
D21: 3
D22: 4
D23: 5
C24: 1.06 | D24: Will the company sign a non-compete agreement? | P24: 1
C25: =C24+0.01 -> 1.07 | D25: Will the company sign a non-disclosure agreement? | P25: 1
C26: =C25+0.01 -> 1.08 | D26: Does your company provide Electronics Manufacturing Services (EMS)? | P26: 1
C27: =C26+0.01 -> 1.09 | D27: Does your company follow ISO 26000 Guidance on social responsibility? | P27: 1
C28: 1.1 | D28: Does your company have JIT, Kanban or Consignment capabilities? | P28: 1
C29: 1.11 | D29: Does your company have a formal internal/external corrective action system? | P29: 3
C30: 1.12 | D30: Does your company have a formal Safety Program? | P30: 3
C31: 1.13 | D31: Does your company have a formal Cost Reduction Program? | P31: 3
C32: 1.14 | D32: Does your company have a formal Lean Production Operations and Services Program? | P32: 3
C33: 1.15 | D33: What are your company's payment terms? | P33: 1
C34: =C33+0.01 -> 1.16 | D34: Does the company understand UL and regulatory agency approvals? | P34: 1
C35: 1.17 | D35: Does the company have established performance measures that are regularly | P35: 3
D36: reported to management?
C37: =C35+0.01 -> 1.18 | D37: Does the company measure on-time delivery performance to your customers? | P37: 3
C38: =C37+0.01 -> 1.19 | D38: Does the company measure quality performance (reject rate) of your customers? | P38: 3
C39: 1.2 | D39: Does the company use these measures to initiate improvement efforts? | P39: 3
C40: 1.21 | D40: Does the company have expertise in the following fields? | P40: 7
D41: Electrical | G41: Mechanical | J41: Design | M41: Test
D42: Tooling | G42: Quality | J42: Fluid/Hydraulic
D43: Other
C44: ="Maximum scoring for "&C11 &" is "& P44 &" points." -> Maximum scoring for 1.00 Management is 47 points. | O44: Total | P44: =SUM(P13:P43) -> 47 | Q44: =SUM(Q13:Q43) -> 0 | R44: =SUM(R13:R43) -> 0
C46: 2.00 Communication
C47: Item | D47: Description | P47: Max Score | Q47: Self Score | R47: Wagner Score
C48: 2.01 | D48: Does your company have Electronic Data Interchange (EDI) capabilities? | P48: 1
C49: =C48+0.01 -> 2.02 | D49: Does the company have File Transfer Protocol site for CAD files? | P49: 1
C50: =C49+0.01 -> 2.03 | D50: Does the company have the ability to electronically communicate. E-mail /Fax etc. | P50: 1
C51: =C50+0.01 -> 2.04 | D51: Is there a formal system in place to notify customers of a process change? | P51: 3
C52: 2.05 | D52: Do all key personnel understand English? Internal/External Communications. | P52: 3
C53: ="Maximum scoring for "&C46&" is "& P53 &" points." -> Maximum scoring for 2.00 Communication is 9 points. | O53: Total | P53: =SUM(P48:P52) -> 9 | Q53: =SUM(Q48:Q52) -> 0 | R53: =SUM(R48:R52) -> 0
C55: Item # | D55: Comments (additional comments may be added to Comments page)
C56: * | D56: Please provide documentation noted in the Item with the evaluation response
C59: Score = 0 There is no formal system in place.
C60: Score = 1 There is a system in place but it isn’t documented or no evidence available.
C61: Score = 2 There is a system in place and documented.
C62: Score = 3 There is a system in place, documented and evidence of conformity exists.

Sheet 3.00 4.00
P3: =Introduction!N3 -> No: MA-4-042-0917
P4: =Introduction!N4 -> DATE: 09/12/2017
P5: Page 4 of 12
C11: 3.00 Contract Review/Document Control
C12: Item | D12: Description | P12: Max Score | Q12: Self Score | R12: Wagner Score
C13: 3.01 | D13: Are incoming customer purchase orders reviewed for clarity, understanding, including | P13: 3
D14: specifications and delivery dates?
C15: =C13+0.01 -> 3.02 | D15: Does the company have a formal documentation control program? | P15: 3
C16: =C15+0.01 -> 3.03 | D16: Is there a formal system in place to ensure the correct revision of specifications is used | P16: 3
D17: on the shop floor?
C18: =C16+0.01 -> 3.04 | D18: Is there a formal system in place to ensure that obsolete documents are removed from | P18: 3
D19: all points of use?
C20: ="Maximum scoring for "&C11 &" is "& P20 &" points." -> Maximum scoring for 3.00 Contract Review/Document Control is 12 points. | N20: Total | P20: =SUM(P13:P18) -> 12 | Q20: =SUM(Q13:Q18) -> 0 | R20: =SUM(R13:R18) -> 0
C22: 4.00 Manufacturing
C23: Item | D23: Description | P23: Max Score | Q23: Self Score | R23: Wagner Score
C24: 4.01 | D24: What Are Your Key Production Processes? (Check all that apply) | P24: 1
D25: Sheet Metal Fab. | G25: Milling | J25: Die Cutting | M25: Turning
D26: Grinding | G26: Die Casting | J26: Plating | M26: Painting
D27: PCB Fabrication | G27: PCB Assembly | J27: PCB Test | M27: Plastic Molding
D28: Welding | G28: Heat Treat | J28: Finishing | M28: Honing
D29: Assembly Oper. | G29: Other
C30: =C24+0.01 -> 4.02 | D30: Is there a formal process in place for obtaining customer approval for the start up of | P30: 3
D31: new jobs or jobs that have been revised, for materials, tooling or process?
C32: =C30+0.01 -> 4.03 | D32: Does this include First Article Inspection (FAI) results that can be supplied? | P32: 3
C33: =C32+0.01 -> 4.04 | D33: Does this include Production Part Approval Process (PPAP) that can be supplied? | P33: 3
C34: 4.05 | D34: Does the company formally utilize control plans? | P34: 3
C35: 4.06 | D35: Is SPC used to control processes and are records readily available to customers? | P35: 3
C36: 4.07 | D36: Has your company identified and validated "Special" Processes? | P36: 3
C37: 4.08 | D37: Is there a system in place for operator training? | P37: 3
C38: 4.09 | D38: Is there a formal system in place to ensure operators understand customer requirements | P38: 3
D39: and expectations?
C40: =C38+0.01 -> 4.1 | D40: Is there a system in place for communicating changes to customer requirements to the | P40: 3
D41: operators?
C42: =C40+0.01 -> 4.11 | D42: Do the operators have the tools and equipment necessary to ensure that quality | P42: 3
D43: requirements are being met?
C44: =C42+0.01 -> 4.12 | D44: Is there a system in place for developing and distributing work instructions or process | P44: 3
D45: documentation to the shop floor?
C46: =C44+0.01 -> 4.13 | D46: Is there a preventive maintenance program in place that includes a maintenance schedule | P46: 3
D47: for production equipment?
C48: ="Maximum scoring for "&C22 &" is "& P48 &" points." -> Maximum scoring for 4.00 Manufacturing is 37 points. | M48: Total | P48: =SUM(P24:P47) -> 37 | Q48: =SUM(Q24:Q47) -> 0 | R48: 0
C50: Item # | D50: Comments (additional comments may be added to Comments page)
C58: Scoring
C59: Score = 2 There is a system in place and documented.
C60: Score = 3 There is a system in place, documented and evidence of conformity exists.

Sheet 5.00 6.00
N3: =Introduction!N3 -> No: MA-4-042-0917
N4: =Introduction!N4 -> DATE: 09/12/2017
N5: Page 5 of 12
C11: 5.00 Procurement
C12: Item | D12: Description | N12: Max Score | O12: Self Score | P12: Wagner Score
C13: 5.01 | D13: Does the company have a formal supplier evaluation and selection program? | N13: 3
C14: =C13+0.01 -> 5.02 | D14: Is there a formal system in place to measure and report on the performance of suppliers? | N14: 3
C15: =C14+0.01 -> 5.03 | D15: Is there a foraml system in place to ensure that only conforming product is accepted for use? | N15: 3
C16: 5.04 | D16: Does the supplier have local (US) representation? | N16: 3
C17: ="Maximum scoring for "&C11 &" is "& N17 &" points." -> Maximum scoring for 5.00 Procurement is 12 points. | M17: Total | N17: =SUM(N13:N16) -> 12 | O17: =SUM(O13:O16) -> 0 | P17: =SUM(P13:P16) -> 0
C19: 6.00 Engineering
C20: Item | D20: Description | N20: Max Score | O20: Self Score | P20: Wagner Score
C21: 6.01 | D21: Does the company have an engineering staff on the premises? | N21: 3
C22: =C21+0.01 -> 6.02 | D22: Does the company have the ability to electronically transfer engineering documentation? | N22: 3
D23: Format?
C24: =C22+0.01 -> 6.03 | D24: Can the supplier perform following tests? (Check all that apply) | N24: 6
D25: a. Pre-production Line Performance
D26: b. Has the company the ability to design and build test fixtures?
D27: c. Does the company do Performance testing?
D28: d. Does the company do Life Testing?
D29: e. Does the company do Reliability testing?
D30: f. Does the company do Drop/Packaging testing?
C31: =C24+0.01 -> 6.04 | D31: Does the company have a formal reporting system to log and report test results? | N31: 3
C32: ="Maximum scoring for "&C19 &" is "& N32 &" points." -> Maximum scoring for 6.00 Engineering is 15 points. | M32: Total | N32: =SUM(N21:N31) -> 15 | O32: =SUM(O21:O31) -> 0 | P32: 0
C34: Item # | D34: Comments (additional comments may be added to Comments page)
C59: Score = 0 There is no formal system in place.
C60: Score = 1 There is a system in place but it isn’t documented or no evidence available.
C61: Score = 2 There is a system in place and documented.
C62: Score = 3 There is a system in place, documented and evidence of conformity exists.

Sheet 7.00
N3: =Introduction!N3 -> No: MA-4-042-0917
N4: =Introduction!N4 -> DATE: 09/12/2017
N5: Page 6 of 12
C11: 7.00 Quality
C12: Item | D12: Description | N12: Max Score | O12: Self Score | P12: Wagner Score
C13: 7.01 | D13: Does the company have an independent quality function? | N13: 3
C14: =C13+0.01 -> 7.02 | D14: Are incoming, in-process and/or final inspection records maintained? | N14: 3
C15: =C14+0.01 -> 7.03 | D15: Is product inspected/verified as to conformity prior to moving to the next operation? | N15: 3
C16: 7.04 | D16: Are inspections/verifications performed per written procedures? | N16: 3
C17: 7.05 | D17: Are specifications available where inspections/verificatons are performed? | N17: 3
C18: 7.06 | D18: Is there a documented calibration system? | N18: 3
C19: 7.07 | D19: Is all inspection & test equipment identified as to calibration status and calibration due date? | N19: 3
C20: 7.08 | D20: Are calibration records maintained? | N20: 3
C21: 7.09 | D21: Are process parameters critical to quality defined? | N21: 3
C22: 7.1 | D22: Does your company measure and report process capability (Cp, Cpk, etc.)? | N22: 3
C23: 7.11 | D23: Does your company measure and report process yields or defects? | N23: 3
C24: 7.11 | D24: Does your company investigate and analyze customer returns for internal corrective actions? | N24: 3
C25: =C24+0.01 -> 7.12 | D25: What verification methods are used by your company? (Check all that apply) | N25: 1
D26: None | G26: Receiving Inspection | J26: Inprocess Inspection
D27: Final Inspection | G27: SPC | J27: Roving/Random
D28: Audit | G28: 1st Article
D29: Other
C30: =C25+0.01 -> 7.13 | D30: What sampling methods are used by your company? (Check all that apply) | N30: 1
D31: 100% Insp. | G31: AQL Insp. | J31: C=0 Insp.
D32: Fixed Sample Size | G32: Percent of Lot Size | J32: SPC
D33: Other
C34: ="Maximum scoring for "&C11 &" is "& N34 &" points." -> Maximum scoring for 7.00 Quality is 38 points. | K34: Total | N34: =SUM(N13:N33) -> 38 | O34: =SUM(O13:O33) -> 0 | P34: =SUM(P13:P33) -> 0
C36: Item # | D36: Comments (additional comments may be added to Comments page)
C59: Scoring
C60: Items with Max Score of 1 are Yes/No. 1 = Yes 0 = No
C61: Score = 0 There is no formal system in place.
C62: Score = 1 There is a system in place but it isn’t documented or no evidence available.
C63: Score = 2 There is a system in place and documented.
C64: Score = 3 There is a system in place, documented and evidence of conformity exists.

Sheet 8.00 9.00 10.00
N3: =Introduction!N3 -> No: MA-4-042-0917
N4: =Introduction!N4 -> DATE: 09/12/2017
N5: Page 7 of 10
C11: 8.00 Product Identification and Traceability
C12: Item | D12: Description | N12: Max Score | O12: Self Score | P12: Wagner Score
C13: 8.01 | D13: Is there a system in place to control customer-supplied product, equipment and gauges? | N13: 3
C14: =C13+0.01 -> 8.02 | D14: Is raw product properly identified and is the disposition readily apparent? | N14: 3
C15: =C14+0.01 -> 8.03 | D15: Is product traceable by lot or batch and identifiable through dates or lot numbers | N15: 3
D16: that remain with the product through shipment to the customer?
C17: ="Maximum scoring for "&C11 &"is "& N17 &" points." -> Maximum scoring for 8.00 Product Identification and Traceability is 9 points. | M17: Total | N17: =SUM(N13:N16) -> 9 | O17: =SUM(O13:O16) -> 0 | P17: =SUM(P13:P16) -> 0
C19: 9.00 Control of Non-conforming Product
C20: Item | D20: Description | N20: Max Score | O20: Self Score | P20: Wagner Score
C21: 9.01 | D21: Is there a formal system in place to handle non-conforming product? | N21: 3
C22: =C21+0.01 -> 9.02 | D22: Is there a formal system in place to prevent shipment of non-conforming product? | N22: 3
C23: 9.03 | D23: Has responsibility for review and disposition of non-conforming product been defined? | N23: 3
C24: =C23+0.01 -> 9.04 | D24: Is non-conforming product properly identified? | N24: 3
C25: =C24+0.01 -> 9.05 | D25: Is non-conforming product segregated from conforming product to prevent accidental use? | N25: 3
C26: =C25+0.01 -> 9.06 | D26: Is there a formal system in place for purging of suspected non-conforming product from the | N26: 3
D27: shop floor?
C28: =C26+0.01 -> 9.07 | D28: Is there a formal system in place to ensure that reworked product conforms | N28: 3
D29: to customer specifications?
C30: =C28+0.01 -> 9.08 | D30: Is there a formal system in place for initiating corrective/preventive action when non-conforming | N30: 3
D31: product is identified?
C32: =C30+0.01 -> 9.09 | D32: Is there a formal system in place to initiate corrective/preventive action based upon | N32: 3
D33: customer complaints?
C34: ="Maximum scoring for "&C19 &"is "& N34 &" points." -> Maximum scoring for 9.00 Control of Non-conforming Product is 27 points. | M34: Total | N34: =SUM(N21:N33) -> 27 | O34: =SUM(O21:O33) -> 0 | P34: 0
C36: 10.00 Packaging, Storage, Handling & Shipping
C37: Item | D37: Description | N37: Max Score | O37: Self Score | P37: Wagner Score
C38: 10.01 | D38: Do shipping and/or inspection personnel have access to information to assure that customer | N38: 3
D39: requirements for packaging and labeling are met?
C40: 10.02 | D40: Is material handled/stored in a suitable way to preserve product quality? | N40: 3
C41: 10.03 | D41: Is material packaged in a suitable way to prevent product damaged during national/ | N41: 3
D42: international shipping?
C43: 10.04 | D43: Does your company have a prefered method of delivery? | N43: 1
C44: ="Maximum scoring for "&C36 &"is "& N44 &" points." -> Maximum scoring for 10.00 Packaging, Storage, Handling & Shipping is 10 points. | M44: Total | N44: =SUM(N38:N43) -> 10 | O44: =SUM(O38:O43) -> 0 | P44: 0
C46: Item # | D46: Comments (additional comments may be added to Comments page)
C56: Scoring
C57: Items with Max Score of 1 are Yes/No. 1 = Yes 0 = No
C58: Score = 0 There is no formal system in place.
C59: Score = 3 There is a system in place, documented and evidence of conformity exists.

Sheet 11.00 (1)
P3: =Introduction!N3 -> No: MA-4-042-0917
P4: =Introduction!N4 -> DATE: 09/12/2017
P5: Page 8 of 12
C11: 11.00 Wagner - Supplier Partnership Evaluation
C12: 11.01 | D12: What do you consider your business capabilities? (Check all that apply)
D13: Type | E13: Description
D14: I | E14: Build to Print
D15: II | E15: Develop and Build (OEM)
D16: III | E16: Develop and Build (Key Component)
D17: IV | E17: Develop Only
C19: 11.02 | D19: What other customers do you provide these capabilities?
D20: Customer Name and their primary products | O20: Location
D21: Customer List is Same as Section 1.05
C28: 11.03 | D28: What Engineering skill sets do you have at your facility, and how many speak English?
D29: Engineering Skill Set | O29: No. Engineers | P29: Speak English
D30: Design
D31: Electrical
D32: Regulatory Compliance
D33: Manufacturing
D34: Quality
D35: Software
D36: Reliability
C38: 11.04 | D38: What test and inspection capabilities do you have in your facilities? (Check all that apply)
D39: Test Type
D40: Electrical
D41: Power supply 120V /60 Hz and 230V/50Hz (test & production areas)
D42: Mechanical
D43: Life Testing (Accelerated)
D44: Ongoing Reliability Test (ORT)
D45: Environmental Conditioning
D46: Chemical
D47: Metrology
D48: Handling (Drop)
D49: Durability
D50: Performance (Functional)
D51: XY table/measurement equipment
C53: 11.05 | D53: What type of technicians do you have to test your products or designs, and how many speak English?
D54: Technical Skill Set | O54: No. Technicians | P54: Speak English
D55: Design
D56: Electrical
D57: Regulatory Compliance
D58: Manufacturing
D59: Reliability
D60: Inspection (Mechanical)

Sheet 11.00 (2)
P3: =Introduction!N3 -> No: MA-4-042-0917
P4: =Introduction!N4 -> DATE: 09/12/2017
P5: Page 9 of 12
C11: 11.00 Wagner - Supplier Partnership Evaluation (cont)
C12: 11.06 | D12: What regulatory agency approvals do you have on your designs? (Check all that apply)
D13: Underwriters Laboratory (UL)
D14: European Commission (CE)
D15: Norma Oficial Mexicana (NOM)
D16: Edison Testing Laboratories (ETL)
D17: Scheme of the IECEE for Mutual Recognition of Test Certificates for Elect. Equip. (CB)
D18: Canadian Standards Association (CSA)
D19: Energy Star
D20: Restriction of Hazardous Substances (RoHS)
D21: Federal Communications Commission (FCC)
D22: DesignLights™ Consortium (DLC)
D23: Ingress Protection (IP)
C28: 11.07 | D28: What type of test documentation do you prepare and maintain?
D29: Detailed/Documented Test Plans
D30: Detailed/Documented Test Report
C34: 11.08 | D34: What type of CAD system/systems do you use to design products?
D35: CREO (Mandatory System)
C42: 11.09 | D42: What is your documentation/change management system?
D43: ISO/TC 171 Document management applications
D44: ISO 9001
D45: Industry Standard
D46: Internally Developed and formalized/documented
D47: Informal
C49: 11.10 | D49: What is your file backup storage system to protect against loss of data?
D50: None
D51: Onsite Backup
D52: Onsite Backup and Offsite Backup
D53: Do you have a disaster recovery plan for data management
C55: 11.11 | D55: Do you have an Intellectual Property program to patent your ideas?
O56: Yes
O57: No

Sheet 12.00
O3: =Introduction!N3 -> No: MA-4-042-0917
O4: =Introduction!N4 -> DATE: 09/12/2017
O5: Page 10 of 12
C11: 12.00 Wagner / Supplier Performance Excellence Planned Actions
C13: Item # | D13: W or S | E13: Performance Excellence Planned Action | Q13: Est. Date
C14: All | D14: W | E14: Wagner will provide feedback on performace excellence area(s) of most importanance to relationship success.
D15: S | E15: Supplier will identify and provide planned actions to Planned Actions List.

Sheet Comments
N3: =Introduction!N3 -> No: MA-4-042-0917
N4: =Introduction!N4 -> DATE: 09/12/2017
N5: Page 11 of 12
C11: Comments
C13: Item # | D13: Comment

Sheet Audit Results
M3: =Introduction!N3 -> No: MA-4-042-0917
M4: =Introduction!N4 -> DATE: 09/12/2017
M5: Page 12 of 12
C11: SYSTEM AUDIT RESULTS
C13: Function Area | L13: Max Score | M13: Supplier Self Score | N13: Wagner Score | S13: Supplier % | T13: Wagner % | U13: Supplier Self Score | V13: Wagner Score | W13: Max
R14: COMPOSITE | S14: =IF(U14>0,(U14/W15),0) -> 0 | T14: =IF(V14>0,(V14/W15),0) -> 0 | U14: =M25 -> 0 | V14: =N25 -> 0
C15: 1.00 Management . . . . . . . . . . . . . . . . . . . . . . . . . . . . . . . . . . . . . | L15: ='1.00 2.00'!P44 -> 47 | M15: ='1.00 2.00'!Q44 -> 0 | N15: ='1.00 2.00'!R44 -> 0 | R15: Management | S15: 0 | T15: 0 | U15: =M15 -> 0 | V15: =N15 -> 0 | W15: =L25 -> 216
C16: 2.00 Communication . . . . . . . . . . . . . . . . . . . . . . . . . . . . . . . . . . . . . . . | L16: ='1.00 2.00'!P53 -> 9 | M16: ='1.00 2.00'!Q53 -> 0 | N16: ='1.00 2.00'!R53 -> 0 | R16: Communication | S16: 0 | T16: 0 | U16: 0 | V16: 0 | W16: =L15 -> 47
C17: 3.00 Contract Review/Document Control . . . . . . . . . . . . . . . . . . . . . . . . . . . . . . . | L17: ='3.00 4.00'!P20 -> 12 | M17: ='3.00 4.00'!Q20 -> 0 | N17: ='3.00 4.00'!R20 -> 0 | R17: Documentation | S17: 0 | T17: 0 | U17: 0 | V17: 0 | W17: 9
C18: 4.00 Manufacturing . . . . . . . . . . . . . . . . . . . . . . . . . . . . . . . . . . . . . . . | L18: ='3.00 4.00'!P48 -> 37 | M18: ='3.00 4.00'!Q48 -> 0 | N18: ='3.00 4.00'!R48 -> 0 | R18: Manufacturing | S18: 0 | T18: 0 | U18: 0 | V18: 0 | W18: 12
C19: 5.00 Procurement . . . . . . . . . . . . . . . . . . . . . . . . . . . . . . . . . . . . . . . . | L19: ='5.00 6.00'!N17 -> 12 | M19: ='5.00 6.00'!O17 -> 0 | N19: ='5.00 6.00'!P17 -> 0 | R19: Procurement | S19: 0 | T19: 0 | U19: 0 | V19: 0 | W19: 37
C20: 6.00 Engineering . . . . . . . . . .. . . . . . . . . . . . . . . . . . . . . . . . . . . . . | L20: ='5.00 6.00'!N32 -> 15 | M20: ='5.00 6.00'!O32 -> 0 | N20: ='5.00 6.00'!P32 -> 0 | R20: Engineering | S20: 0 | T20: 0 | U20: 0 | V20: 0 | W20: 12
C21: 7.00 Quality . . . . . . . . . . . . .. . . . . . . . . . . . . . . . . . . . . . . . . . . . . | L21: ='7.00'!N34 -> 38 | M21: ='7.00'!O34 -> 0 | N21: ='7.00'!P34 -> 0 | R21: Quality | S21: 0 | T21: 0 | U21: 0 | V21: 0 | W21: 15
C22: 8.00 Product Identification and Traceability . . . . . . . . . . . . . . . . . . . . . . . . . . . . . . . . | L22: ='8.00 9.00 10.00'!N17 -> 9 | M22: ='8.00 9.00 10.00'!O17 -> 0 | N22: ='8.00 9.00 10.00'!P17 -> 0 | R22: Product ID etc. | S22: 0 | T22: 0 | U22: 0 | V22: 0 | W22: 38
C23: 9.00 Control of Non-conforming Product . . . . . . . . . . . . . . . . . . . . . . . . . . . . . . . . . | L23: ='8.00 9.00 10.00'!N34 -> 27 | M23: ='8.00 9.00 10.00'!O34 -> 0 | N23: ='8.00 9.00 10.00'!P34 -> 0 | R23: Control of Non-conforming etc. | S23: 0 | T23: 0 | U23: 0 | V23: 0 | W23: 9
C24: 10.00 Packaging, Storage, Handling & Shipping . . . . . . . . . . . . . . . . . . . . . . . . . . . . . . . | L24: ='8.00 9.00 10.00'!N44 -> 10 | M24: ='8.00 9.00 10.00'!O44 -> 0 | N24: ='8.00 9.00 10.00'!P44 -> 0 | R24: Packaging etc. | S24: 0 | T24: 0 | U24: 0 | V24: 0 | W24: 27
C25: Totals | L25: =SUM(L15:L24) -> 216 | M25: =SUM(M15:M24) -> 0 | N25: 0 | W25: 10
